Cogmind - Beta 13 @@@ ROGUE MODE // 2024.06.14 @ 13:46:58 Player: Quiggsy Result: Destroyed by G-47 Trooper with Particle Gun Performance ------------- Evolutions (3) 1500 Regions Visited (5) 1000 Robots Destroyed (49) 245 Value Destroyed (1221) 1221 Prototype IDs (2) 40 Alien Tech Used (0) 0 Bonus (92) 92 TOTAL SCORE: 4098 Bonus ------- Follower Combat Kills 92 Cogmind --------- Core Integrity 0/700 Matter 51/300 Energy 145/150 System Corruption 2% Temperature Cool (18) Movement Rolling (90) Location -7/Factory Parts ------- > --- POWER (2) -------- Micro Nuclear Core > --- PROPULSION (4) --- Wheel Armored Huge Wheel > --- UTILITY (4) ------ Improved Heat Sink Visual Processing Unit Shock Absorption System > --- WEAPON (3) ------- (None) > --- INVENTORY (5) ---- Flight Unit Improved Field Recycling Unit (0) Peak State ------------ > --- POWER ------------ Improved Ion Engine Light Nuclear Core > --- PROPULSION ------- Light Treads Light Treads > --- UTILITY ---------- Improved Heat Sink Small Storage Unit Splice Drone Bay > --- WEAPON ----------- Heavy EM Shotgun Autogun > --- INVENTORY -------- Hacking Suite Heavy EM Shotgun Heavy EM Shotgun Heavy EM Shotgun Beam Rifle Grenade Launcher Grenade Launcher Datajack [Rating: 26] Favorites ----------- Power Ion Engine Engine Ion Engine Power Core Light Nuclear Core Propulsion Aluminum Leg Treads Light Treads Leg Aluminum Leg Wheel Compact Wheel Flight Unit Flight Unit Utility Small Storage Unit Device Splice Drone Bay Storage Small Storage Unit Processor Visual Processing Unit Hackware Hacking Suite Protection Hardened Light Armor Plating Weapon Assault Rifle Energy Gun Beam Rifle Ballistic Gun Assault Rifle Ballistic Cannon Gauss Cannon Launcher Grenade Launcher Special Melee Weapon Datajack Build | -11 -10 -10 -9 -8 -7 ------- Run | Yrd Mat Min Mat Mat Fac Slots Evolved 6 | . . . 2 2 2 Power 1 | . . . 1 . . Propulsion 2 | . . . . 2 . Utility 2 | . . . 1 . 1 Weapon 1 | . . . . . 1 Parts Attached 75 | 6 2 10 7 26 24 Power 13 | 1 . 1 2 5 4 Engine 7 | 1 . . 1 3 2 Core 6 | . . 1 1 2 2 Reactor . | . . . . . . Propulsion 23 | 2 . 3 2 7 9 Treads 7 | . . . 2 . 5 Leg 7 | 2 . 3 . 2 . Wheel 7 | . . . . 4 3 Hover . | . . . . . . Flight 2 | . . . . 1 1 Utility 10 | 1 . 1 1 1 6 Device 5 | . . 1 1 . 3 Storage 1 | 1 . . . . . Processor 2 | . . . . 1 1 Hackware 1 | . . . . . 1 Protection 1 | . . . . . 1 Artifact . | . . . . . . Weapon 29 | 2 2 5 2 13 5 Energy Gun 11 | . . 2 1 8 . Energy Cannon . | . . . . . . Ballistic Gun 6 | 2 1 1 1 1 . Ballistic Cannon 1 | . . . . . 1 Launcher 9 | . 1 2 . 4 2 Special Weapon . | . . . . . . Impact Weapon . | . . . . . . Slashing Weapon . | . . . . . . Piercing Weapon . | . . . . . . Special Melee Weapon 2 | . . . . . 2 Unidentified Prototypes 2 | . . 1 . 1 . Corrupted Parts 2 | . . . . 2 . System Corruption 4 | . . . . 4 . Parts Lost 39 | . . 2 . 19 18 Power 9 | . . . . 6 3 Propulsion 13 | . . 1 . 6 6 Utility 6 | . . . . 2 4 Weapon 11 | . . 1 . 5 5 Highest Loss Streak 16 | . . 1 . 9 16 To Critical Strikes . | . . . . . . Average Slot Usage (%) 74 | . 85 91 96 62 48 Engine 7 | . 14 9 8 5 . Core 3 | . . 4 11 4 1 Treads 7 | . . . 21 8 13 Leg 12 | . 28 28 . 3 . Wheel 1 | . . . . 3 1 Device 6 | . . 5 21 10 . Storage 9 | . 14 14 11 9 . Processor 3 | . . . . 2 12 Energy Gun 4 | . . 6 11 7 . Ballistic Gun 11 | . 22 20 11 4 . Launcher 2 | . 5 . . 3 5 Naked Turns . | . . . . . . Heaviest Build 33 | 13 15 21 30 33 23 Greatest Support 64 | 20 20 20 40 64 60 Greatest Overweight (x) 5 | . . 1 1 3 5 Average Overweight (x) . | . . . . . . Largest Inventory Capacity 8 | 8 8 8 8 8 8 Average Capacity 7 | 6 8 8 8 8 5 Most Carried 8 | 4 8 8 8 8 5 Average Carried 5 | 2 6 7 7 5 3 Final Capacity 8 | 8 8 8 8 8 5 Final Carried 8 | 4 8 8 8 4 2 Class Distribution -------------------- 100% | Mutant Dominant Class ---------------- Mutant | -10/Materials Mutant | -10/Mines Mutant | -9/Materials Mutant | -8/Materials Mutant | -7/Factory Resources | -11 -10 -10 -9 -8 -7 ----------- Run | Yrd Mat Min Mat Mat Fac Matter Collected 1042 | 174 83 280 142 229 134 Remotely . | . . . . . . Salvage Created 1331 | . 219 157 142 813 . Parts 104 | . 27 15 8 54 . Haulers Intercepted . | . . . . . . Recyclers Shooed 2 | . 1 . . 1 . Parts Field Recycled . | . . . . . . Retrieved Matter . | . . . . . . Parts Self-Destructed . | . . . . . . Prevented . | . . . . . . Kills | -11 -10 -10 -9 -8 -7 ------- Run | Yrd Mat Min Mat Mat Fac Combat Hostiles Destroyed 39 | . 9 7 3 20 . Guns 26 | . 3 6 3 14 . AOE 13 | . 6 1 . 6 . Classes Destroyed 10 | . 5 1 2 2 . Worker 2 | . 1 . . 1 . Builder 4 | . 3 . . 1 . Tunneler 1 | . . 1 . . . Recycler 1 | . 1 . . . . Operator 1 | . . . 1 . . Watcher 1 | . . . . 1 . Swarmer 19 | . 7 5 . 7 . Grunt 15 | . 2 2 2 9 . Sentry 4 | . . . 1 3 . Hunter 1 | . . . . 1 . Best Kill Streak 12 | . 12 4 2 5 . Combat Bots Only 7 | . 7 3 2 5 . Max Kills in Single Turn 3 | . 3 1 1 3 . Gunslinging . | . . . . . . Exploded 3 | . 3 1 . 2 . Melee . | . . . . . . Uniques/NPCs Destroyed . | . . . . . . Combat | -11 -10 -10 -9 -8 -7 -------- Run | Yrd Mat Min Mat Mat Fac Hostile Shots Fired 745 | . 42 59 8 247 389 Missed 250 | . 12 23 2 82 131 Damage Taken 5704 | . 259 308 74 2313 2750 Core 1340 | . 25 63 . 536 716 Absorbed by Shields 170 | . . . . . 170 Core Remaining (%) 66 | 100 . 64 100 2 . Volleys Fired 93 | . 10 17 14 49 3 Largest 2 | . 2 2 2 2 1 Hottest 100 | . 50 60 79 100 48 Shots Fired 176 | . 19 34 25 95 3 Gun 152 | . 14 32 25 81 . Cannon 3 | . . . . . 3 Launcher 21 | . 5 2 . 14 . Special . | . . . . . . Kinetic 83 | . 14 26 14 26 3 Thermal 41 | . . 6 11 24 . Explosive 21 | . 5 2 . 14 . Electromagnetic 31 | . . . . 31 . Robot Hit Streak 9 | . 3 9 5 7 2 Robot Miss Streak 5 | . 5 4 1 4 2 Penetration Max . | . . . . . . Secondary Targets 3 | . . 2 . 1 . Max Gunslinging Chain 1 | . . 1 . 1 . Shots Hit Robots 113 | . 9 17 18 62 7 Core Hits 81 | . 16 9 6 48 2 Critical Kills 1 | . 1 . . . . Critical Parts Destroyed . | . . . . . . Critical Strikes 3 | . 1 . . 2 . Burn 2 | . . . . 2 . Destroy 1 | . 1 . . . . Melee Attacks 5 | . . . . . 5 Impact . | . . . . . . Slashing . | . . . . . . Piercing . | . . . . . . Sneak Attacks 4 | . . . . . 4 Combat Hostiles . | . . . . . . Follow-up Attacks . | . . . . . . Damage Inflicted 3120 | . 749 284 268 1763 56 Guns 1515 | . 68 209 268 970 . Cannons 38 | . . . . . 38 Explosions 1538 | . 681 75 . 782 . Melee . | . . . . . . Ramming 29 | . . . . 11 18 Kinetic 676 | . 68 166 146 258 38 Thermal 506 | . . 43 122 341 . Explosive 1387 | . 681 75 . 631 . Electromagnetic 522 | . . . . 522 . Impact . | . . . . . . Slashing . | . . . . . . Piercing . | . . . . . . Highest Corruption 4 | . . . 4 4 2 Average Corruption 3 | . . . 2 3 2 Corruption Purged . | . . . . . . Corruption Blocked . | . . . . . . Effects 12 | . . . 2 8 2 Message Errors 2 | . . . 1 1 . Matter Fused 7 | . . . 1 4 2 Parts Rejected 1 | . . . . 1 . Data Loss (minor) 1 | . . . . 1 . Misfires 1 | . . . . 1 . Overload Shots . | . . . . . . Overflow Damage 33 | . 11 . . 22 . Projectiles . | . . . . . . Explosions 33 | . 11 . . 22 . Melee . | . . . . . . Knockbacks 1 | . . . . . 1 Impact . | . . . . . . Kinetic 1 | . . . . . 1 Secondary . | . . . . . . Self-Inflicted Damage 57 | . . . . 49 8 Shots 2 | . . . . 2 . Rammed 3 | . . . . . 3 Targets Rammed 4 | . . . . 1 3 Kicked 1 | . . . . 1 . Crushed . | . . . . . . Highest Temperature 102 | . 2 12 42 102 18 Average Temperature 19 | . 2 6 17 23 6 Received Heat Transfer 1854 | . 24 39 33 909 849 Siege Activations . | . . . . . . Robots Corrupted . | . . . . . . Combat Hostiles . | . . . . . . Parts Fried . | . . . . . . Impact Corruptions . | . . . . . . Robots Melted . | . . . . . . Combat Hostiles . | . . . . . . Parts Melted 2 | . . . . 2 . Heat Transferred 1288 | . . 100 309 879 . Parts Sabotaged . | . . . . . . Parts Stolen . | . . . . . . Parts Stripped . | . . . . . . Power Chain Reactions 1 | . . . . 1 . Alert | -11 -10 -10 -9 -8 -7 ------- Run | Yrd Mat Min Mat Mat Fac Peak Influence 417 | . 312 210 133 417 244 Initial 184 | . . 74 47 55 184 Average 135 | . 142 108 80 180 150 Maximum Alert Level 2 | . 1 1 . 2 1 Low Security (%) 73 | 100 63 96 100 57 57 Level 1 25 | . 36 3 . 37 42 Level 2 1 | . . . . 4 . Level 3 . | . . . . . . Level 4 . | . . . . . . Level 5 . | . . . . . . High Security . | . . . . . . Max Security . | . . . . . . Squads Dispatched 4 | . . . 1 2 1 Investigation 1 | . . . . . 1 Extermination . | . . . . . . Reinforcement 3 | . . . 1 2 . Assault . | . . . . . . Garrison . | . . . . . . Intercept . | . . . . . . Searches Triggered . | . . . . . . Construction Impeded 1 | . . . . 1 . Haulers Reinforced . | . . . . . . Active Scanning Responses . | . . . . . . Cargo Convoy Interrupts . | . . . . . . Stealth | -11 -10 -10 -9 -8 -7 --------- Run | Yrd Mat Min Mat Mat Fac Distress Signals 5 | . . . . 4 1 Communications Jammed . | . . . . . . Distress Signals . | . . . . . . Times Spotted 84 | . 17 10 9 35 13 Peak Tracking Total 9 | . 5 3 4 8 9 Tactical Retreats 6 | . 3 . . 2 1 Traps | -11 -10 -10 -9 -8 -7 ------- Run | Yrd Mat Min Mat Mat Fac Traps Triggered 2 | . . . 2 . . Indirectly . | . . . . . . Trap Hack Attempts . | . . . . . . Triggered . | . . . . . . Disarmed . | . . . . . . Reprogrammed . | . . . . . . Reused . | . . . . . . Traps Extracted . | . . . . . . Installed . | . . . . . . Triggered . | . . . . . . Machines | -11 -10 -10 -9 -8 -7 ---------- Run | Yrd Mat Min Mat Mat Fac Machines Disabled 8 | . 3 . . 5 . Max in Single Turn 2 | . 1 . . 2 . Machines Repaired . | . . . . . . Machines Dismantled . | . . . . . . Machines Sabotaged . | . . . . . . Overloaded Fab Kills . | . . . . . . Hacking | -11 -10 -10 -9 -8 -7 --------- Run | Yrd Mat Min Mat Mat Fac Machines Accessed 2 | . . 1 . . 1 Terminals 1 | . . . . . 1 Fabricators . | . . . . . . Repair Stations . | . . . . . . Recycling Units . | . . . . . . Scanalyzers . | . . . . . . Garrison Access . | . . . . . . Total Hacks 4 | . . 1 . . 3 Successful 1 | . . 1 . . . Failed 3 | . . . . . 3 Catastrophic 1 | . . . . . 1 Database Lockouts . | . . . . . . Manual . | . . . . . . Terminals 3 | . . . . . 3 Fabricators . | . . . . . . Repair Stations . | . . . . . . Recycling Units . | . . . . . . Scanalyzers . | . . . . . . Garrison Access . | . . . . . . Terminal Hacks 1 | . . 1 . . . Open Door 1 | . . 1 . . . Fabricator Hacks . | . . . . . . Repair Station Hacks . | . . . . . . Recycling Unit Hacks . | . . . . . . Scanalyzer . | . . . . . . Garrison Access Hacks . | . . . . . . Unauthorized Hacks . | . . . . . . Terminals . | . . . . . . Fabricators . | . . . . . . Repair Stations . | . . . . . . Recycling Units . | . . . . . . Scanalyzers . | . . . . . . Garrison Access . | . . . . . . Data Cores Recovered . | . . . . . . Used . | . . . . . . Hacking Detections 1 | . . . . . 1 Full Trace Events 1 | . . . . . 1 Feedback Events . | . . . . . . Feedback Blocked . | . . . . . . Robot Schematics Acquired . | . . . . . . Robots Built . | . . . . . . Authchips . | . . . . . . Time . | . . . . . . Total Robot Build Rating . | . . . . . . Part Schematics Acquired . | . . . . . . Parts Built . | . . . . . . Authchips . | . . . . . . Time . | . . . . . . Total Part Build Rating . | . . . . . . Parts Repaired . | . . . . . . Time . | . . . . . . Parts Recycled . | . . . . . . Recycled Matter . | . . . . . . Retrieved Matter . | . . . . . . Retrieved Components . | . . . . . . Parts Scanalyzed . | . . . . . . Part Schematics Acquired . | . . . . . . Parts Damaged . | . . . . . . Bothacking | -11 -10 -10 -9 -8 -7 ------------ Run | Yrd Mat Min Mat Mat Fac Used RIF Installer . | . . . . . . Robots Hacked 3 | . . . . . 3 Non-combat 2 | . . . . . 2 Combat 1 | . . . . . 1 Robot Hacks Applied 3 | . . . . . 3 parse_system 1 | . . . . . 1 no_distress 1 | . . . . . 1 find_chute 1 | . . . . . 1 Relay Couplers Released . | . . . . . . Fabnet Peak Effective % . | . . . . . . Robots Rewired . | . . . . . . Allies Hacked . | . . . . . . Hacks Repelled . | . . . . . . Allies | -11 -10 -10 -9 -8 -7 -------- Run | Yrd Mat Min Mat Mat Fac Total Allies 3 | . . 3 . . . Largest Group 3 | . . 3 2 . . Highest-Rated Group 40 | . . 40 24 . . Highest-Rated Ally 16 | . . 16 16 . . Total Orders . | . . . . . . Ally Attacks 44 | . . 28 16 . . Total Damage 397 | . . 254 143 . . Kills 4 | . . 3 1 . . Allies Corrupted . | . . . . . . Allies Melted . | . . . . . . Intel | -11 -10 -10 -9 -8 -7 ------- Run | Yrd Mat Min Mat Mat Fac Robot Analysis Total . | . . . . . . Derelict Logs Recovered 2 | . . 2 . . . Drone Launches . | . . . . . . Drone Recoveries . | . . . . . . Exploration | -11 -10 -10 -9 -8 -7 ------------- Run | Yrd Mat Min Mat Mat Fac Turns Passed 2828 | 86 447 713 263 741 578 Spaces Moved 1839 | 63 339 452 133 380 472 Core 265 | 2 . . . 103 160 Treads 482 | . . . 131 159 192 Legs 941 | 61 339 452 2 87 . Wheels 62 | . . . . 13 49 Hover . | . . . . . . Flight 89 | . . . . 18 71 Fastest Speed 40 | 50 120 120 160 100 40 Average Speed 131 | 117 120 141 160 146 110 Slowest Speed 300 | 120 120 190 190 240 300 Overloaded Moves . | . . . . . . Propulsion Burnouts . | . . . . . . Robots Hopped . | . . . . . . Cave-ins Triggered . | . . . . . . Exploration Rate (%) 39 | 4 58 93 23 47 13 Regions Visited 5 Branch Regions 1 Pre-discovered Areas . | . . . . . . Known Exits Taken 1 | . . . 1 . . Unknown Exits Taken 4 | 1 1 1 . 1 . Scrap Searched 1 | . . 1 . . . Spaces Dug . | . . . . . . Terrain Destroyed 98 | . 35 13 . 49 1 Melee . | . . . . . . Projectile 1 | . . . . . 1 AOE 97 | . 35 13 . 49 . Terrain Rammed . | . . . . . . Walls Destroyed . | . . . . . . Machines Disabled . | . . . . . . Actions | -11 -10 -10 -9 -8 -7 --------- Run | Yrd Mat Min Mat Mat Fac Total 2071 | 72 360 490 160 472 517 Wait 12 | . 2 7 2 . 1 Move 1834 | 62 338 451 132 379 472 Hop . | . . . . . . Pick Up 25 | 4 6 2 2 5 6 Fast Attach 35 | 6 . 1 . 14 14 Attach 22 | . . 2 2 8 10 Detach 6 | . . . . 4 2 Swap 18 | . 2 7 5 4 . Drop 17 | . 2 3 3 8 1 Fire 93 | . 10 17 14 49 3 Melee 5 | . . . . . 5 Ram 2 | . . . . . 2 Kick 1 | . . . . 1 . Crush 1 | . . . . . 1 Escape Stasis . | . . . . . . Rewire . | . . . . . . Trap . | . . . . . . Miscellaneous . | . . . . . . Route ------- -11/Scrapyard -10/Materials (discovered 2 exits: *Min x2) -10/Mines (discovered 3 exits: [*Mat x2] / Sub) -9/Materials (discovered 4 exits: *Mat x3 / Min) -8/Materials (discovered 2 exits: *Fac / [*Sto]) -7/Factory History --------- Turn | Location | Event 2 | -11/Scrapyard | Met Revision 17 5 | -11/Scrapyard | Discovered new exit (range 15) 87 | -11/Scrapyard | Entered Materials 165 | -10/Materials | Discovered new exit (range 14) 294 | -10/Materials | Discovered new exit (range 16) 314 | -10/Materials | Build established: Mutant 349 | -10/Materials | Destroyed 7 combat bots 534 | -10/Materials | Entered Mines 617 | -10/Mines | Discovered new exit (range 8) 645 | -10/Mines | Assisted by bots powering up and referring to "LRC-V3" 747 | -10/Mines | Learned 8 Materials zone layouts 947 | -10/Mines | Found the Drone Emporium 952 | -10/Mines | Found Prototype Device 952 | -10/Mines | Identified Splice Drone Bay 1093 | -10/Mines | Identified exit to Subcaves 1114 | -10/Mines | Discovered new exit (range 11) 1247 | -10/Mines | Entered Materials 1247 | -9/Materials | Accompanied by 2 allies 1247 | -9/Materials | Evolved 2 slots: Power x1, Utility x1 1248 | -9/Materials | Identified exit to Materials 1248 | -9/Materials | Identified exit to Mines 1510 | -9/Materials | Entered another Materials area 1510 | -8/Materials | Evolved 2 slots: Propulsion x2 1626 | -8/Materials | Discovered new exit (range 7) 1915 | -8/Materials | Lost 9 parts (2p3n1u3w) 2041 | -8/Materials | Core integrity fell below 50% 2078 | -8/Materials | Lost 7 parts (1p3n1u2w) 2222 | -8/Materials | Core integrity fell below 20% 2237 | -8/Materials | Discovered new exit (range 13) 2251 | -8/Materials | Entered Factory 2251 | -7/Factory | Evolved 2 slots: Utility x1, Weapon x1 2713 | -7/Factory | Core integrity fell below 50% 2765 | -7/Factory | Core integrity fell below 20% 2828 | -7/Factory | Lost 16 parts (3p6n4u3w) 2829 | -7/Factory | Destroyed by G-47 Trooper with Particle Gun Last Messages --------------- Lgt. Treads destroyed. Penetrated by Slug. Gauss Cannon destroyed. Penetrated by Slug. Imp. Datajack destroyed. M-13 Machinist repairs H-55 Commando. Critical hit (Burn: +25). Acquired Wheel. Imp. Shield Generator destroyed. Penetrated by Slug. Critical hit (Burn: +37). Slammed into R-06 Scavenger. Ion Engine destroyed. System corrupted by crushing effect (+2). Slammed into R-06 Scavenger. System corrupted: Matter fused (-7). Acquired Imp. Heat Sink. Acquired Shock Absorption System. System corrupted: Matter fused (-8). Penetrated by Slug. Map ----- +----------------------------------------------------+ | ?????????????????????????????????????????????????? | | ?????????????????????????????????????????????????? | | ?????????????????????????????????????????????????? | | ?????????????????????????????????????????????????? | | ?????????????????????????????????????????????????? | | ?????????????????????????????????????????????????? | | ?????????????????????????????????????????????????? | | ?????????????????????????????????????????????????? | | ?????????????????????????????????????????????????? | | ?????????????????????????????????????????????????? | | ?????????????????????????????????????????????????? | | ?????????????????????????????????????????????????? | | ?????????????????????????????????????????????????? | | ????????????????##########???????????????????????? | | ????????????????# #???????????????????????? | | ????????????????# """"" #???????????????????????? | | ????????????????# "" F" #???????????????????????? | | ????????????????# "" "" #???????????????????????? | | ????????????????# #???????????????????????? | | ????????????????# """ #???????????????????????? | | ????????????????# """ #???????????????????????? | | ?????##### ????# """ #???????????????????????? | | ## #??# #???????????????????????? | | #??#####+####???????????????????????? | | ##### #????# #######+###??????????????? | | #######???????????# @ #??????????????? | | ! #???????????# #??????????????? | | #???????????# g #??????????????? | | #???????????# g ####### #??????????????? | | #???????????###h###???????? #??????????????? | | " """#?????????????# #??????????????????????????? | | " T"#?????????????# #??????????????????????????? | | " """#?????????????# #???? #????????????????????? | | #?????????????# #?? #????????????????????? | | /#################### # #????????????????????? | | % + #????????????????????? | | ###########+#######????????????????????? | | #????????? ?????????????????????????? | | ######### #????????? "????????????????????????? | | ????????# #???????? Y???????????????????????? | | ????????# #????????" """#?????????????????????? | | ????????# ???????"" #?????????????????????? | | ????????# ???????"" #?????????????????????? | | ????????# ?????? #?????????????????????? | | ????????# ??????""" """ #?????????????????????? | | ????????# ???????"" """ #?????????????????????? | | ????????? ???????"" """ #?????????????????????? | | ????????? ???????? ? #?????????????????????? | | ????????? ???????? ??? #?????????????????????? | | ????????? ???????##????###?????????????????????? | +----------------------------------------------------+ Best States ------------- Heat Dissipation 48 Energy Generation 21 Energy Capacity 325 Matter Stores 300 Matter Capacity 300 Sight Range 18 Terrain Scan Density 10 Armor Coverage 150 Resistance: EX 25 Evasion (%) 62 Core Analysis 6 Recoil Reduction 3 Offensive Hacking 10 Item Schematics ----------------- None Robot Schematics ------------------ None Fabricated ------------ Nothing Alien Tech Used ----------------- None Achievements -------------- None Challenges ------------ None Game ------ Seed ExoskeletonCommBuckler Manual? 0 Play Time 00:38:01 Cumulative 8.5 hours Start 2024.06.14 @ 13:09:40 End 2024.06.14 @ 13:46:58 Sessions 1 Manual Loads 0 Difficulty Rogue Special Mode None Game No. 10 Rogue 10 Adventurer 0 Explorer 0 Win Type - Total 0 Types 0/0/0/0/0/0/0/0/0 Lore% 1 Gallery% 13 Achievement% 11 Wizard Run 0 Options --------- Layout 1 ASCII 0 Keyboard 0 Movement Numpad Keybinds 0 Fullscreen 2 Font 24/Cog Map View 50x35 Zoom Use 0% Tactical HUD 0 Map Filters NONE Filters NONE Steam 1 RUN: 44442234-4291-4de3-b538-7d244baeaa65